[Event "German-ch Women 2024"]
[Site "Ostfildern"]
[Date "2024.08.20"]
[Round "3.9"]
[White "Albayrak, Aylin"]
[Black "Wartenberg, Alissa"]
[Result "0-1"]
[ECO "E12"]
[WhiteElo "1741"]
[BlackElo "1858"]
[Annotator "NA COMBH"]
[PlyCount "124"]
[EventDate "2024.08.16"]
[EventType "tourn"]
[EventCountry "GER"]
[SourceTitle "playchess.com"]
[Source "ChessBase"]
[SourceQuality "1"]
[TimeControl "40/5400+30:1800+30"]

1. d4 {[%emt 0:00:02]} Nf6 {[%emt 0:00:05]} 2. c4 {[%emt 0:00:05]} e6 {[%emt 0:00:05]} 3. Nf3 {[%emt 0:00:11]} b6 {[%emt 0:00:04]} 4. Nc3 {[%emt 0:00:28]} c6 {[%emt 0:00:45]} 5. Bg5 {[%emt 0:00:25]} h6 {[%emt 0:02:14]} 6. Bh4 {[%emt 0:00:12]} d5 {[%emt 0:02:13]} 7. e3 {[%emt 0:01:07]} Nbd7 {[%emt 0:02:35]} 8. Be2 {[%emt 0:01:22]} Bb7 {[%emt 0:00:58]} 9. O-O {[%emt 0:03:06]} Be7 {[%emt 0:00:25]} 10. Rc1 {[%emt 0:01:14]} O-O {[%emt 0:06:47]} 11. Qa4 {[%emt 0:04:51]} c5 {[%emt 0:02:40]} 12. Rfd1 {[%emt 0:03:45]} Rc8 {[%emt 0:10:07]} 13. Bg3 {[%emt 0:07:03]} dxc4 {[%emt 0:11:47]} 14. Bxc4 {[%emt 0:07:55]} Bxf3 {[%emt 0:06:34]} 15. gxf3 {[%emt 0:00:22]} cxd4 {[%emt 0:01:05]} 16. Rxd4 {[%emt 0:00:44]} Bc5 {[%emt 0:00:45]} 17. Rd3 {[%emt 0:02:20]} Qe7 {[%emt 0:03:39]} 18. Rcd1 {[%emt 0:03:27]} Nb8 {[%emt 0:04:58]} 19. a3 {[%emt 0:00:54]} a5 {[%emt 0:02:35]} 20. Nb5 {[%emt 0:03:34]} Nh7 {[%emt 0:04:41]} 21. Nd6 {[%emt 0:02:53]} Bxd6 {[%emt 0:01:15]} 22. Rxd6 {[%emt 0:01:20]} Qb7 {[%emt 0:08:11]} 23. Be2 {[%emt 0:04:27]} Ng5 {[%emt 0:02:57]} 24. Kg2 {[%emt 0:02:28]} Na6 {[%emt 0:04:47]} 25. h4 {[%emt 0:01:18]} Nh7 {[%emt 0:00:49]} 26. Qb5 {[%emt 0:05:59]} Nc7 {[%emt 0:02:25]} 27. Qxb6 {[%emt 0:01:49]} Qxb6 {[%emt 0:00:33]} 28. Rxb6 {[%emt 0:00:05]} Nd5 {[%emt 0:00:09]} 29. Rb5 {[%emt 0:01:05]} Rc2 {[%emt 0:00:10]} 30. Kf1 {[%emt 0:01:36]} a4 {[%emt 0:02:05]} 31. Bd3 {[%emt 0:03:32]} Rc6 {[%emt 0:00:34]} 32. Be4 {[%emt 0:01:29]} Nhf6 {[%emt 0:00:14]} 33. Bd3 {[%emt 0:01:26]} Ra8 {[%emt 0:00:50]} 34. e4 {[%emt 0:01:24]} Nb6 {[%emt 0:00:41]} 35. e5 {[%emt 0:02:16]} Nfd5 {[%emt 0:00:20]} 36. f4 {[%emt 0:04:31]} Rac8 {[%emt 0:01:11]} 37. f5 {[%emt 0:02:53]} Rc1 {[%emt 0:00:50]} 38. Ke2 {[%emt 0:02:30]} R1c5 {[%emt 0:02:17]} 39. Rxc5 {[%emt 0:02:09]} Rxc5 {[%emt 0:00:03]} 40. f4 {[%emt 0:04:24]} exf5 {[%emt 0:01:54]} 41. Bxf5 {[%emt 0:30:55]} Rb5 {[%emt 0:31:12]} 42. Rd2 {[%emt 0:03:12]} Nc4 {[%emt 0:05:22]} 43. Rc2 {[%emt 0:00:47]} Nde3 {[%emt 0:03:03]} 44. Bd7 {[%emt 0:03:54]} Rb7 {[%emt 0:01:41]} 45. Rxc4 {[%emt 0:09:59]} Nxc4 {[%emt 0:00:14]} 46. Bxa4 {[%emt 0:00:21]} Rxb2+ {[%emt 0:00:22]} 47. Kf3 {[%emt 0:00:00]} Ra2 {[%emt 0:00:00]} 48. Bc6 {[%emt 0:00:00]} Rxa3+ {[%emt 0:00:00]} 49. Kf2 {[%emt 0:00:00]} Ne3 {[%emt 0:00:00]} 50. Ke2 {[%emt 0:00:00]} Ng4 {[%emt 0:00:00]} 51. Be1 {[%emt 0:00:00]} Ne3 {[%emt 0:00:00]} 52. Bb4 {[%emt 0:00:00]} Rb3 {[%emt 0:00:00]} 53. Bd6 {[%emt 0:00:00]} Nf5 {[%emt 0:00:00]} 54. Ba4 {[%emt 0:00:00]} Re3+ {[%emt 0:00:00]} 55. Kf2 {[%emt 0:00:00]} Re4 {[%emt 0:00:00]} 56. Bc2 {[%emt 0:00:00]} Rxf4+ {[%emt 0:00:00]} 57. Ke2 {[%emt 0:00:00]} Nxd6 {[%emt 0:00:00]} 58. exd6 {[%emt 0:00:00]} Rd4 {[%emt 0:00:00]} 59. Ke3 {[%emt 0:00:00]} Rxd6 {[%emt 0:00:00]} 60. Kf4 {[%emt 0:00:00]} g6 {[%emt 0:00:00]} 61. Kg4 {[%emt 0:00:00]} Rd4+ {[%emt 0:00:00]} 62. Kg3 {[%emt 0:00:00] Check Result:-110.21} Kg7 {[%emt 0:00:00]} 0-1

[Event "German-ch Women 2024"]
[Site "Ostfildern"]
[Date "2024.08.20"]
[Round "3.10"]
[White "Koeberl, Christiane"]
[Black "Sokyrko, Sofiia"]
[Result "1-0"]
[ECO "D05"]
[WhiteElo "1745"]
[BlackElo "1585"]
[Annotator "NA RC"]
[PlyCount "37"]
[EventDate "2024.08.16"]
[EventType "tourn"]
[EventCountry "GER"]
[SourceTitle "playchess.com"]
[Source "ChessBase"]
[SourceQuality "1"]
[TimeControl "40/5400+30:1800+30"]

1. d4 {[%emt 0:00:02]} d5 {[%emt 0:00:16]} 2. Nf3 {[%emt 0:00:27]} Nf6 {[%emt 0:00:46]} 3. e3 {[%emt 0:00:05]} e6 {[%emt 0:00:14]} 4. Bd3 {[%emt 0:00:05]} Be7 {[%emt 0:00:13]} 5. b3 {[%emt 0:00:26]} O-O {[%emt 0:00:42]} 6. Bb2 {[%emt 0:00:05]} Nbd7 {[%emt 0:00:34]} 7. Nbd2 {[%emt 0:00:06]} c6 {[%emt 0:00:23]} 8. O-O {[%emt 0:00:31]} b6 {[%emt 0:00:15]} 9. Ne5 {[%emt 0:00:13]} Bb7 {[%emt 0:01:21]} 10. f4 {[%emt 0:00:44]} Rc8 {[%emt 0:01:52]} 11. Rf3 {[%emt 0:00:15]} c5 {[%emt 0:04:51]} 12. dxc5 {[%emt 0:02:56]} Bxc5 {[%emt 0:13:50]} 13. Rh3 {[%emt 0:01:13]} g6 {[%emt 0:15:37]} 14. Ng4 {[%emt 0:05:13]} Be7 {[%emt 0:02:08]} 15. Nh6+ {[%emt 0:02:01]} Kg7 {[%emt 0:03:15]} 16. Nf3 {[%emt 0:00:52]} Re8 {[%emt 0:07:21]} 17. Ng5 {[%emt 0:02:30]} Kf8 {[%emt 0:04:32]} 18. Nhxf7 {[%emt 0:00:54]} Qc7 {[%emt 0:00:31]} 19. Nxe6+ {[%emt 0:00:11]} 1-0

[Event "German-ch Women 2024"]
[Site "Ostfildern"]
[Date "2024.08.21"]
[Round "4.1"]
[White "Braun, Kristin"]
[Black "Miljkovic, Jovana"]
[Result "1-0"]
[ECO "B51"]
[WhiteElo "2001"]
[BlackElo "2021"]
[Annotator "NA RC"]
[PlyCount "77"]
[EventDate "2024.08.16"]
[EventType "tourn"]
[EventCountry "GER"]
[SourceTitle "playchess.com"]
[Source "ChessBase"]
[SourceQuality "1"]
[TimeControl "40/5400+30:1800+30"]

1. e4 {[%emt 0:00:01]} c5 {[%emt 0:00:02]} 2. Nf3 {[%emt 0:00:09]} d6 {[%emt 0:00:04]} 3. Bb5+ {[%emt 0:00:06]} Nd7 {[%emt 0:00:05]} 4. d4 {[%emt 0:01:02]} cxd4 {[%emt 0:00:05]} 5. Qxd4 {[%emt 0:00:10]} a6 {[%emt 0:00:10]} 6. Be2 {[%emt 0:01:49]} Ngf6 {[%emt 0:01:41]} 7. O-O {[%emt 0:00:49]} e5 {[%emt 0:01:40]} 8. Qe3 {[%emt 0:00:51]} Be7 {[%emt 0:01:29]} 9. Nfd2 {[%emt 0:06:03]} O-O {[%emt 0:01:48]} 10. c4 {[%emt 0:00:30]} Re8 {[%emt 0:01:40]} 11. Nc3 {[%emt 0:01:15]} Nc5 {[%emt 0:01:28]} 12. Rd1 {[%emt 0:06:11]} Ne6 {[%emt 0:02:14]} 13. Nf3 {[%emt 0:06:47]} Ng4 {[%emt 0:09:46]} 14. Qd2 {[%emt 0:03:54]} Nf4 {[%emt 0:04:18]} 15. Bf1 {[%emt 0:00:42]} Be6 {[%emt 0:08:32]} 16. g3 {[%emt 0:11:13]} Ng6 {[%emt 0:03:17]} 17. Ng5 {[%emt 0:01:54]} Bxg5 {[%emt 0:10:02]} 18. Qxg5 {[%emt 0:00:06]} Qb6 {[%emt 0:01:43]} 19. Qd2 {[%emt 0:00:42]} Rac8 {[%emt 0:01:24]} 20. b3 {[%emt 0:05:27]} Qc5 {[%emt 0:07:38]} 21. h3 {[%emt 0:09:58]} Nf6 {[%emt 0:00:21]} 22. Qxd6 {[%emt 0:00:22]} Qxd6 {[%emt 0:01:22]} 23. Rxd6 {[%emt 0:00:01]} b5 {[%emt 0:00:26]} 24. Rxa6 {[%emt 0:00:37]} bxc4 {[%emt 0:00:25]} 25. b4 {[%emt 0:00:49]} Ne7 {[%emt 0:03:50]} 26. b5 {[%emt 0:02:40]} Rb8 {[%emt 0:04:09]} 27. Be3 {[%emt 0:03:05]} Red8 {[%emt 0:01:52]} 28. Rb1 {[%emt 0:03:42]} Nc8 {[%emt 0:01:15]} 29. Rc6 {[%emt 0:06:42]} Nd6 {[%emt 0:03:17]} 30. Bb6 {[%emt 0:02:53]} Rxb6 {[%emt 0:02:09]} 31. Rxb6 {[%emt 0:00:13]} Ndxe4 {[%emt 0:00:19]} 32. Nxe4 {[%emt 0:01:31]} Nxe4 {[%emt 0:00:02]} 33. Rc1 {[%emt 0:05:19]} Nd2 {[%emt 0:02:52]} 34. Bg2 {[%emt 0:02:07]} e4 {[%emt 0:01:57]} 35. Rd1 {[%emt 0:01:26]} c3 {[%emt 0:02:35]} 36. Rc6 {[%emt 0:02:29]} g6 {[%emt 0:07:24]} 37. Rxc3 {[%emt 0:01:12]} Bxh3 {[%emt 0:00:08]} 38. Rc2 {[%emt 0:00:49]} Bxg2 {[%emt 0:00:32]} 39. Kxg2 {[%emt 0:00:30]} 1-0

[Event "German-ch Women 2024"]
[Site "Ostfildern"]
[Date "2024.08.21"]
[Round "4.2"]
[White "Foltin, Alica"]
[Black "Kostak, Tetyana"]
[Result "0-1"]
[ECO "A50"]
[WhiteElo "1722"]
[BlackElo "2094"]
[Annotator "NA RC"]
[PlyCount "128"]
[EventDate "2024.08.16"]
[EventType "tourn"]
[EventCountry "GER"]
[SourceTitle "playchess.com"]
[Source "ChessBase"]
[SourceQuality "1"]
[TimeControl "40/5400+30:1800+30"]

1. d4 {[%emt 0:00:01]} Nf6 {[%emt 0:00:48]} 2. c4 {[%emt 0:00:22]} Nc6 {[%emt 0:00:18]} 3. Nc3 {[%emt 0:06:35]} e5 {[%emt 0:01:01]} 4. d5 {[%emt 0:03:46]} Ne7 {[%emt 0:00:26]} 5. e4 {[%emt 0:02:09]} Ng6 {[%emt 0:00:17]} 6. Be3 {[%emt 0:02:07]} Bb4 {[%emt 0:01:11]} 7. Bd3 {[%emt 0:02:14]} Bxc3+ {[%emt 0:00:20]} 8. bxc3 {[%emt 0:00:03]} d6 {[%emt 0:00:07]} 9. h3 {[%emt 0:00:43]} b6 {[%emt 0:00:23]} 10. Ne2 {[%emt 0:03:39]} O-O {[%emt 0:04:20]} 11. g4 {[%emt 0:04:00]} Nh4 {[%emt 0:01:04]} 12. Kd2 {[%emt 0:05:09]} Nd7 {[%emt 0:04:19]} 13. Ng3 {[%emt 0:02:00]} Ng2 {[%emt 0:00:45]} 14. Qf3 {[%emt 0:03:24]} Nxe3 {[%emt 0:00:19]} 15. Qxe3 {[%emt 0:00:36]} Nc5 {[%emt 0:12:22]} 16. Be2 {[%emt 0:02:09]} Qh4 {[%emt 0:07:47]} 17. Kc2 {[%emt 0:07:08]} Kh8 {[%emt 0:00:30]} 18. Nf1 {[%emt 0:05:16]} f6 {[%emt 0:06:29]} 19. Nd2 {[%emt 0:01:55]} Qg5 {[%emt 0:00:26]} 20. Qxg5 {[%emt 0:04:48]} fxg5 {[%emt 0:00:02]} 21. f3 {[%emt 0:00:46]} Bd7 {[%emt 0:00:29]} 22. Nb3 {[%emt 0:01:07]} Nb7 {[%emt 0:00:40]} 23. h4 {[%emt 0:00:51]} gxh4 {[%emt 0:00:10]} 24. Rxh4 {[%emt 0:00:11]} Be8 {[%emt 0:00:06]} 25. Rah1 {[%emt 0:00:52]} Bg6 {[%emt 0:00:12]} 26. Rb1 {[%emt 0:05:51]} Nd8 {[%emt 0:02:02]} 27. Nd2 {[%emt 0:02:02]} Nf7 {[%emt 0:00:17]} 28. Kd3 {[%emt 0:03:37]} Rab8 {[%emt 0:00:43]} 29. Ke3 {[%emt 0:01:05]} Kg8 {[%emt 0:00:38]} 30. Rh2 {[%emt 0:01:09]} Ng5 {[%emt 0:02:15]} 31. Rhh1 {[%emt 0:06:46]} Kf7 {[%emt 0:01:29]} 32. Bd1 {[%emt 0:01:46]} Ke7 {[%emt 0:00:31]} 33. Ba4 {[%emt 0:00:49]} Rf4 {[%emt 0:00:29]} 34. Rhg1 {[%emt 0:01:05]} Rbf8 {[%emt 0:01:22]} 35. Rg3 {[%emt 0:01:32]} Nf7 {[%emt 0:06:08]} 36. Rh3 {[%emt 0:09:52]} h6 {[%emt 0:01:06]} 37. Bb5 {[%emt 0:00:57]} Nd8 {[%emt 0:02:46]} 38. Rb3 {[%emt 0:00:45]} a5 {[%emt 0:00:33]} 39. Rh2 {[%emt 0:03:36]} Nb7 {[%emt 0:01:33]} 40. Rb2 {[%emt 0:02:33]} Nc5 {[%emt 0:00:17]} 41. Rh1 {[%emt 0:30:32]} Rh8 {[%emt 0:33:58]} 42. Rbb1 {[%emt 0:04:31]} Rhf8 {[%emt 0:04:50]} 43. Rh3 {[%emt 0:00:35]} R8f6 {[%emt 0:02:18]} 44. g5 {[%emt 0:00:00]} hxg5 {[%emt 0:00:00]} 45. Rg1 {[%emt 0:00:00]} g4 {[%emt 0:00:00]} 46. Rhg3 {[%emt 0:00:00]} Bh5 {[%emt 0:00:00]} 47. fxg4 {[%emt 0:00:00]} Bg6 {[%emt 0:00:00]} 48. g5 {[%emt 0:00:00]} Rf8 {[%emt 0:00:00]} 49. Rg4 {[%emt 0:00:00]} Bxe4 {[%emt 0:00:00]} 50. R1g3 {[%emt 0:00:00]} Bg6 {[%emt 0:00:00]} 51. Rg2 {[%emt 0:00:00]} Bh5 {[%emt 0:00:00]} 52. R4g3 {[%emt 0:00:00]} Bg6 {[%emt 0:00:00]} 53. Rg4 {[%emt 0:00:00]} Rxg4 {[%emt 0:00:00]} 54. Rxg4 {[%emt 0:00:00]} Rh8 {[%emt 0:00:00]} 55. Nf3 {[%emt 0:00:00]} Rh3 {[%emt 0:00:00]} 56. Rh4 {[%emt 0:00:00]} Rxh4 {[%emt 0:00:00]} 57. Nxh4 {[%emt 0:00:00]} Bb1 {[%emt 0:00:00]} 58. a3 {[%emt 0:00:00]} Ne4 {[%emt 0:00:00]} 59. Nf3 {[%emt 0:00:00]} Nxc3 {[%emt 0:00:00]} 60. Bc6 {[%emt 0:00:00]} Ne4 {[%emt 0:00:00]} 61. g6 {[%emt 0:00:00]} Kf6 {[%emt 0:00:22]} 62. Be8 {[%emt 0:00:00]} Ng3 {[%emt 0:01:19]} 63. Kf2 {[%emt 0:00:00]} Nh5 {[%emt 0:00:20]} 64. Nh4 {[%emt 0:00:00]} Nf4 {[%emt 0:00:12]} 0-1

[Event "German-ch Women 2024"]
[Site "Ostfildern"]
[Date "2024.08.21"]
[Round "4.3"]
[White "Bluebaum, Johanna"]
[Black "Wilmink, Anna"]
[Result "1-0"]
[ECO "E52"]
[WhiteElo "1994"]
[BlackElo "1905"]
[Annotator "NA RC"]
[PlyCount "139"]
[EventDate "2024.08.16"]
[EventType "tourn"]
[EventCountry "GER"]
[SourceTitle "playchess.com"]
[Source "ChessBase"]
[SourceQuality "1"]
[TimeControl "40/5400+30:1800+30"]

1. d4 {[%emt 0:00:01]} Nf6 {[%emt 0:00:08]} 2. c4 {[%emt 0:00:10]} e6 {[%emt 0:00:08]} 3. Nc3 {[%emt 0:00:05]} Bb4 {[%emt 0:00:15]} 4. e3 {[%emt 0:00:03]} O-O {[%emt 0:00:21]} 5. Bd2 {[%emt 0:00:03]} b6 {[%emt 0:01:09]} 6. Nf3 {[%emt 0:00:19]} Bb7 {[%emt 0:00:17]} 7. Bd3 {[%emt 0:00:33]} d5 {[%emt 0:00:25]} 8. cxd5 {[%emt 0:00:50]} exd5 {[%emt 0:00:09]} 9. Rc1 {[%emt 0:04:14]} Be7 {[%emt 0:03:53]} 10. O-O {[%emt 0:06:19]} c5 {[%emt 0:01:56]} 11. Ne5 {[%emt 0:00:31]} Nc6 {[%emt 0:05:29]} 12. f4 {[%emt 0:00:43]} cxd4 {[%emt 0:11:54]} 13. Nxc6 {[%emt 0:00:32]} Bxc6 {[%emt 0:00:11]} 14. exd4 {[%emt 0:00:20]} Qd7 {[%emt 0:03:10]} 15. Qc2 {[%emt 0:05:35]} Ne4 {[%emt 0:11:16]} 16. Be3 {[%emt 0:01:28]} Rac8 {[%emt 0:04:10]} 17. Qb1 {[%emt 0:17:52]} f5 {[%emt 0:03:27]} 18. a3 {[%emt 0:05:44]} Qe8 {[%emt 0:06:58]} 19. Ba6 {[%emt 0:02:12]} Rd8 {[%emt 0:03:29]} 20. Qa2 {[%emt 0:09:35]} Rf6 {[%emt 0:07:49]} 21. Nxe4 {[%emt 0:10:41]} fxe4 {[%emt 0:00:17]} 22. Be2 {[%emt 0:03:36]} Bb5 {[%emt 0:10:40]} 23. b4 {[%emt 0:00:16]} Bxe2 {[%emt 0:01:09]} 24. Qxe2 {[%emt 0:00:06]} Rc6 {[%emt 0:01:17]} 25. Rxc6 {[%emt 0:01:05]} Qxc6 {[%emt 0:00:14]} 26. Rc1 {[%emt 0:00:17]} Qd7 {[%emt 0:01:28]} 27. h3 {[%emt 0:09:13]} g6 {[%emt 0:04:51]} 28. Qc2 {[%emt 0:02:37]} Bd6 {[%emt 0:01:21]} 29. Qb3 {[%emt 0:01:32]} Qf7 {[%emt 0:01:51]} 30. Kh1 {[%emt 0:01:47]} Bb8 {[%emt 0:02:51]} 31. Rf1 {[%emt 0:03:08]} Qc7 {[%emt 0:01:10]} 32. Qd1 {[%emt 0:02:40]} Qc3 {[%emt 0:01:26]} 33. Qg4 {[%emt 0:04:29]} Qc8 {[%emt 0:04:36]} 34. Qg5 {[%emt 0:01:42]} Qc7 {[%emt 0:01:10]} 35. Rc1 {[%emt 0:01:08]} Qd6 {[%emt 0:00:33]} 36. Rc6 {[%emt 0:01:36]} Qd7 {[%emt 0:00:56]} 37. b5 {[%emt 0:00:18]} Rf8 {[%emt 0:00:52]} 38. Rf6 {[%emt 0:03:09]} Bc7 {[%emt 0:01:38]} 39. Rxf8+ {[%emt 0:01:23]} Kxf8 {[%emt 0:00:09]} 40. a4 {[%emt 0:01:40]} Kg7 {[%emt 0:04:19]} 41. Qg3 {[%emt 0:11:27]} Qd6 {[%emt 0:14:19]} 42. Qg4 {[%emt 0:03:06]} Kf7 {[%emt 0:06:09]} 43. Qc8 {[%emt 0:01:29]} Ke7 {[%emt 0:03:38]} 44. Qh8 {[%emt 0:01:56]} h5 {[%emt 0:01:15]} 45. Qg7+ {[%emt 0:04:40]} Kd8 {[%emt 0:00:46]} 46. Qg8+ {[%emt 0:00:23]} Kd7 {[%emt 0:01:00]} 47. Kh2 {[%emt 0:02:59]} Qe6 {[%emt 0:01:00]} 48. Qg7+ {[%emt 0:01:42]} Kc8 {[%emt 0:00:51]} 49. Qf8+ {[%emt 0:01:35]} Kb7 {[%emt 0:00:50]} 50. g3 {[%emt 0:00:27]} Qd6 {[%emt 0:01:27]} 51. Qg8 {[%emt 0:01:04]} Bb8 {[%emt 0:01:27]} 52. Bd2 {[%emt 0:02:40]} Bc7 {[%emt 0:00:45]} 53. Qe8 {[%emt 0:01:00]} Qf6 {[%emt 0:01:04]} 54. Be3 {[%emt 0:01:04]} h4 {[%emt 0:01:04]} 55. Qd7 {[%emt 0:00:53]} hxg3+ {[%emt 0:00:56]} 56. Kxg3 {[%emt 0:00:04]} Qd6 {[%emt 0:01:07]} 57. Qxd6 {[%emt 0:00:57]} Bxd6 {[%emt 0:00:04]} 58. Kg4 {[%emt 0:00:09]} Be7 {[%emt 0:00:22]} 59. f5 {[%emt 0:01:01]} g5 {[%emt 0:00:26]} 60. Kh5 {[%emt 0:00:37]} Kc7 {[%emt 0:00:59]} 61. Kg6 {[%emt 0:00:05]} Kd7 {[%emt 0:00:39]} 62. f6 {[%emt 0:00:05]} Bf8 {[%emt 0:00:25]} 63. Bxg5 {[%emt 0:00:21]} Ke6 {[%emt 0:00:57]} 64. h4 {[%emt 0:00:20]} Kd7 {[%emt 0:00:57]} 65. Kf7 {[%emt 0:00:23]} Bb4 {[%emt 0:00:25]} 66. h5 {[%emt 0:00:18]} Bc3 {[%emt 0:00:24]} 67. Be3 {[%emt 0:00:05]} Be1 {[%emt 0:00:39]} 68. h6 {[%emt 0:00:06]} Bh4 {[%emt 0:00:26]} 69. h7 {[%emt 0:00:05]} Bxf6 {[%emt 0:00:35]} 70. Kxf6 {[%emt 0:00:04]} 1-0

[Event "German-ch Women 2024"]
[Site "Ostfildern"]
[Date "2024.08.21"]
[Round "4.4"]
[White "Bursan, Ana-Maria"]
[Black "Novikova, Margarita"]
[Result "1-0"]
[ECO "B07"]
[WhiteElo "1719"]
[BlackElo "1991"]
[Annotator "NA RC"]
[PlyCount "89"]
[EventDate "2024.08.16"]
[EventType "tourn"]
[EventCountry "GER"]
[SourceTitle "playchess.com"]
[Source "ChessBase"]
[SourceQuality "1"]
[TimeControl "40/5400+30:1800+30"]

1. e4 {[%emt 0:00:02]} g6 {[%emt 0:00:49]} 2. d4 {[%emt 0:00:22]} Bg7 {[%emt 0:00:58]} 3. Nc3 {[%emt 0:01:24]} d6 {[%emt 0:02:11]} 4. Be3 {[%emt 0:02:39]} Nf6 {[%emt 0:01:13]} 5. f3 {[%emt 0:02:15]} Nbd7 {[%emt 0:01:44]} 6. Qd2 {[%emt 0:04:01]} e5 {[%emt 0:02:37]} 7. d5 {[%emt 0:05:51]} a6 {[%emt 0:03:41]} 8. g4 {[%emt 0:07:27]} h6 {[%emt 0:08:59]} 9. h4 {[%emt 0:04:57]} h5 {[%emt 0:20:18]} 10. g5 {[%emt 0:10:41]} Nh7 {[%emt 0:01:47]} 11. a4 {[%emt 0:03:43]} b6 {[%emt 0:05:24]} 12. b4 {[%emt 0:06:15]} a5 {[%emt 0:01:08]} 13. Nb5 {[%emt 0:09:28]} axb4 {[%emt 0:04:28]} 14. Qxb4 {[%emt 0:00:48]} Nc5 {[%emt 0:01:26]} 15. Ne2 {[%emt 0:04:59]} Nf8 {[%emt 0:09:02]} 16. Nc1 {[%emt 0:03:35]} Nfd7 {[%emt 0:05:20]} 17. Nb3 {[%emt 0:02:03]} O-O {[%emt 0:08:15]} 18. Be2 {[%emt 0:07:45]} Ba6 {[%emt 0:03:44]} 19. Kd2 {[%emt 0:03:50]} Nb8 {[%emt 0:02:53]} 20. a5 {[%emt 0:01:14]} c6 {[%emt 0:01:04]} 21. Nc3 {[%emt 0:02:36]} Bxe2 {[%emt 0:02:27]} 22. Kxe2 {[%emt 0:00:34]} cxd5 {[%emt 0:01:14]} 23. Nxd5 {[%emt 0:01:06]} bxa5 {[%emt 0:01:30]} 24. Nxa5 {[%emt 0:04:09]} Nba6 {[%emt 0:00:35]} 25. Qc4 {[%emt 0:01:28]} Rc8 {[%emt 0:01:44]} 26. Nb7 {[%emt 0:02:21]} Nxb7 {[%emt 0:01:28]} 27. Qxc8 {[%emt 0:00:28]} Qxc8 {[%emt 0:02:37]} 28. Ne7+ {[%emt 0:00:11]} Kh7 {[%emt 0:00:02]} 29. Nxc8 {[%emt 0:00:14]} Rxc8 {[%emt 0:00:11]} 30. Rxa6 {[%emt 0:00:30]} Rxc2+ {[%emt 0:00:03]} 31. Kd3 {[%emt 0:00:59]} Rb2 {[%emt 0:00:22]} 32. Rb6 {[%emt 0:00:59]} Rxb6 {[%emt 0:01:35]} 33. Bxb6 {[%emt 0:00:17]} f6 {[%emt 0:00:24]} 34. Rc1 {[%emt 0:01:18]} fxg5 {[%emt 0:00:59]} 35. hxg5 {[%emt 0:02:00]} Kg8 {[%emt 0:02:57]} 36. Rc8+ {[%emt 0:06:01]} Kh7 {[%emt 0:03:21]} 37. Rb8 {[%emt 0:00:00]} Nc5+ {[%emt 0:00:00]} 38. Bxc5 {[%emt 0:00:00]} dxc5 {[%emt 0:00:00]} 39. Kc4 {[%emt 0:00:00]} h4 {[%emt 0:00:00]} 40. Kxc5 {[%emt 0:00:00]} h3 {[%emt 0:00:00]} 41. Rb1 {[%emt 0:27:41]} Bf8+ {[%emt 0:27:18]} 42. Kd5 {[%emt 0:01:04]} Be7 {[%emt 0:00:13]} 43. Rh1 {[%emt 0:00:34]} Bxg5 {[%emt 0:00:07]} 44. Rxh3+ {[%emt 0:00:30]} Kg7 {[%emt 0:00:06]} 45. Kxe5 {[%emt 0:00:39]} 1-0

[Event "German-ch Women 2024"]
[Site "Ostfildern"]
[Date "2024.08.21"]
[Round "4.5"]
[White "Wagenschuetz, Evelyn"]
[Black "Mader, Lena"]
[Result "0-1"]
[ECO "B19"]
[WhiteElo "2070"]
[BlackElo "1876"]
[Annotator "NA RC"]
[PlyCount "65"]
[EventDate "2024.08.16"]
[EventType "tourn"]
[EventCountry "GER"]
[SourceTitle "playchess.com"]
[Source "ChessBase"]
[SourceQuality "1"]
[TimeControl "40/5400+30:1800+30"]

1. e4 {[%emt 0:00:04]} c6 {[%emt 0:00:05]} 2. d4 {[%emt 0:00:08]} d5 {[%emt 0:00:05]} 3. Nc3 {[%emt 0:00:07]} dxe4 {[%emt 0:00:50]} 4. Nxe4 {[%emt 0:00:04]} Bf5 {[%emt 0:00:29]} 5. Ng3 {[%emt 0:00:32]} Bg6 {[%emt 0:00:38]} 6. h4 {[%emt 0:00:16]} h6 {[%emt 0:00:37]} 7. Nf3 {[%emt 0:00:12]} Nf6 {[%emt 0:00:41]} 8. Ne5 {[%emt 0:01:43]} Bh7 {[%emt 0:01:43]} 9. Bc4 {[%emt 0:02:15]} e6 {[%emt 0:03:15]} 10. Qe2 {[%emt 0:01:00]} Qc8 {[%emt 0:06:15]} 11. O-O {[%emt 0:07:42]} Be7 {[%emt 0:01:38]} 12. Nh5 {[%emt 0:09:39]} O-O {[%emt 0:12:52]} 13. Nxg7 {[%emt 0:12:13]} Kxg7 {[%emt 0:00:57]} 14. Qe3 {[%emt 0:04:22]} Ng8 {[%emt 0:06:58]} 15. Qg3+ {[%emt 0:10:09]} Kh8 {[%emt 0:01:37]} 16. Re1 {[%emt 0:09:19]} Bf5 {[%emt 0:06:25]} 17. Qf3 {[%emt 0:06:13]} Nd7 {[%emt 0:02:18]} 18. g4 {[%emt 0:04:19]} Nxe5 {[%emt 0:01:03]} 19. dxe5 {[%emt 0:09:03]} Bg6 {[%emt 0:04:51]} 20. g5 {[%emt 0:02:51]} h5 {[%emt 0:00:39]} 21. Bd3 {[%emt 0:04:00]} Kg7 {[%emt 0:06:33]} 22. Be4 {[%emt 0:01:20]} Bc5 {[%emt 0:06:52]} 23. Bf4 {[%emt 0:02:43]} Qc7 {[%emt 0:00:58]} 24. Bg3 {[%emt 0:00:21]} Qb6 {[%emt 0:01:17]} 25. Rab1 {[%emt 0:03:35]} a5 {[%emt 0:01:09]} 26. a4 {[%emt 0:01:13]} Rfd8 {[%emt 0:04:35]} 27. Re2 {[%emt 0:05:38]} Rd7 {[%emt 0:00:51]} 28. c3 {[%emt 0:00:14]} Rad8 {[%emt 0:00:35]} 29. Rbe1 {[%emt 0:02:31]} Rd2 {[%emt 0:01:24]} 30. Kg2 {[%emt 0:00:45]} Qb3 {[%emt 0:09:17]} 31. Bf4 {[%emt 0:00:23]} Rxe2 {[%emt 0:00:30]} 32. Rxe2 {[%emt 0:00:30]} Qxa4 {[%emt 0:00:30]} 33. Bg3 {[%emt 0:00:30]} 0-1